fUST/lending_fUST_20260605
["ID","MTS","AMOUNT","RATE_DAILY","PERIOD"]
[424106026,1780595448000,-303.23422048,0.00015001,2]
[424106025,1780595448000,-222.335848,0.00015,2]
[424106033,1780595448000,-500.0,0.00015068,2]
[424106032,1780595448000,-406.46759621,0.00015068,2]
[424106028,1780595448000,-824.0,0.00015048,2]
[424106023,1780595448000,-222.335849,0.00015,2]
[424106024,1780595448000,-222.335849,0.00015,2]
[424106030,1780595448000,-500.0,0.00015068,2]
[424106034,1780595448000,-701.09,0.00015068,2]
[424106037,1780595448000,-790.04,0.00015068,2]
[424106102,1780595449000,-701.09,0.00015616,2]
[424106111,1780595449000,-734.42,0.00015616,2]
[424106103,1780595449000,-500.0,0.00015616,2]
[424106105,1780595449000,-790.04,0.00015616,2]
[424106114,1780595449000,-500.0,0.00015616,2]
[424106107,1780595449000,-902.47,0.00015616,2]
[424106104,1780595449000,-500.0,0.00015616,2]
[424106113,1780595449000,-1209.16,0.00015616,2]
[424106106,1780595449000,-500.0,0.00015616,2]
[424106110,1780595449000,-4361.75,0.00015616,2]
[424106109,1780595449000,-246.20222123,0.00015616,2]
[424106108,1780595449000,-500.0,0.00015616,2]
[424106119,1780595449000,-945.28,0.00015616,2]
[424106115,1780595449000,-534.77,0.00015616,2]
[424106118,1780595449000,-500.0,0.00015616,2]
[424106121,1780595449000,-920.6,0.00015616,2]
[424106117,1780595449000,-796.32,0.00015616,2]
[424106116,1780595449000,-500.0,0.00015616,2]
[424106089,1780595449000,-500.0,0.00015342,2]
[424106120,1780595449000,-500.0,0.00015616,2]
[424106122,1780595449000,-1186.94,0.00015616,2]
[424106124,1780595449000,-848.2,0.00015616,2]
[424106134,1780595449000,-902.47,0.0001589,2]
[424106123,1780595449000,-500.0,0.00015616,2]
[424106129,1780595449000,-701.09,0.0001589,2]
[424106131,1780595449000,-500.0,0.0001589,2]
[424106133,1780595449000,-385.0117698,0.0001589,2]
[424106112,1780595449000,-500.0,0.00015616,2]
[424106097,1780595449000,-824.0,0.00015497,2]
[424106096,1780595449000,-848.2,0.00015342,2]
[424106093,1780595449000,-183.24,0.00015342,2]
[424106125,1780595449000,-858.427094,0.000158,2]
[424106071,1780595449000,-701.09,0.00015342,2]
[424106072,1780595449000,-500.0,0.00015342,2]
[424106070,1780595449000,-500.0,0.00015342,2]
[424106073,1780595449000,-500.0,0.00015342,2]
[424106074,1780595449000,-790.04,0.00015342,2]
[424106084,1780595449000,-1209.16,0.00015342,2]
[424106085,1780595449000,-500.0,0.00015342,2]
[424106076,1780595449000,-902.47,0.00015342,2]
[424106075,1780595449000,-500.0,0.00015342,2]
[424106086,1780595449000,-534.77,0.00015342,2]
[424106079,1780595449000,-4361.75,0.00015342,2]
[424106077,1780595449000,-500.0,0.00015342,2]
[424106087,1780595449000,-500.0,0.00015342,2]
[424106080,1780595449000,-366.55923253,0.00015342,2]
[424106083,1780595449000,-394.61301167,0.00015342,2]
[424106078,1780595449000,-500.0,0.00015342,2]
[424106082,1780595449000,-500.0,0.00015342,2]
[424106088,1780595449000,-796.32,0.00015342,2]
[424106090,1780595449000,-945.28,0.00015342,2]
[424106092,1780595449000,-920.6,0.00015342,2]
[424106091,1780595449000,-500.0,0.00015342,2]
[424106094,1780595449000,-1186.94,0.00015342,2]
[424106095,1780595449000,-500.0,0.00015342,2]
[424106099,1780595449000,-500.0,0.00015616,2]
[424106098,1780595449000,-4000.0,0.000155,2]
[424106101,1780595449000,-500.0,0.00015616,2]
[424106100,1780595449000,-569.56204542,0.00015616,2]
[424106081,1780595449000,-734.42,0.00015342,2]
[424106132,1780595449000,-790.04,0.0001589,2]
[424106128,1780595449000,-500.0,0.0001589,2]
[424106162,1780595449000,-204.47983466,0.00016096,2]
[424106171,1780595449000,-500.0,0.00016164,2]
[424106169,1780595449000,-790.04,0.00016164,2]
[424106168,1780595449000,-500.0,0.00016164,2]
[424106166,1780595449000,-701.09,0.00016164,2]
[424106167,1780595449000,-500.0,0.00016164,2]
[424106170,1780595449000,-902.47,0.00016164,2]
[424106165,1780595449000,-500.0,0.00016164,2]
[424106174,1780595449000,-500.0,0.00016164,2]
[424106184,1780595449000,-1186.94,0.00016164,2]
[424106185,1780595449000,-500.0,0.00016164,2]
[424106173,1780595449000,-734.42,0.00016164,2]
[424106183,1780595449000,-920.6,0.00016164,2]
[424106180,1780595449000,-500.0,0.00016164,2]
[424106177,1780595449000,-534.77,0.00016164,2]
[424106176,1780595449000,-500.0,0.00016164,2]
[424106178,1780595449000,-500.0,0.00016164,2]
[424106182,1780595449000,-500.0,0.00016164,2]
[424106175,1780595449000,-1209.16,0.00016164,2]
[424106179,1780595449000,-796.32,0.00016164,2]
[424106186,1780595449000,-848.2,0.00016164,2]
[424106187,1780595449000,-177.98136645,0.00016166,2]
[424106188,1780595449000,-176.85532247,0.00016166,2]
[424106189,1780595449000,-172.5974262,0.00016166,2]
[424106190,1780595449000,-182.49757941,0.00016166,2]
[424106191,1780595449000,-171.99059816,0.00016166,2]
[424106130,1780595449000,-500.0,0.0001589,2]
[424106161,1780595449000,-160.62604953,0.00016096,2]
[424106164,1780595449000,-427.22603968,0.00016164,2]
[424106181,1780595449000,-945.28,0.00016164,2]
[424106163,1780595449000,-155.57272077,0.00016096,2]
[424106126,1780595449000,-158.0,0.00015836,3]
[424106172,1780595449000,-4361.75,0.00016164,2]
[424106127,1780595449000,-500.0,0.0001589,2]
[424106135,1780595449000,-500.0,0.0001589,2]
[424106137,1780595449000,-734.42,0.0001589,2]
[424106139,1780595449000,-1209.16,0.0001589,2]
[424106144,1780595449000,-500.0,0.0001589,2]
[424106141,1780595449000,-534.77,0.0001589,2]
[424106136,1780595449000,-4361.75,0.0001589,2]
[424106145,1780595449000,-945.28,0.0001589,2]
[424106142,1780595449000,-500.0,0.0001589,2]
[424106143,1780595449000,-796.32,0.0001589,2]
[424106140,1780595449000,-500.0,0.0001589,2]
[424106146,1780595449000,-500.0,0.0001589,2]
[424106138,1780595449000,-500.0,0.0001589,2]
[424106157,1780595449000,-153.99093195,0.00016095,2]
[424106160,1780595449000,-190.31567991,0.00016096,2]
[424106147,1780595449000,-920.6,0.0001589,2]
[424106154,1780595449000,-188.81276744,0.00016074,2]
[424106156,1780595449000,-158.82420155,0.00016095,2]
[424106158,1780595449000,-159.70209072,0.00016095,2]
[424106150,1780595449000,-848.2,0.0001589,2]
[424106153,1780595449000,-151.0,0.00016,2]
[424106155,1780595449000,-154.92765277,0.00016074,2]
[424106151,1780595449000,-218.97423379,0.00016,2]
[424106148,1780595449000,-1186.94,0.0001589,2]
[424106159,1780595449000,-159.03391668,0.00016096,2]
[424106149,1780595449000,-500.0,0.0001589,2]
[424106152,1780595449000,-767.92208879,0.00016,3]
[424106228,1780595450000,-500.0,0.00016438,2]
[424106237,1780595450000,-151.0,0.00016438,2]
[424106236,1780595450000,-151.0,0.00016438,2]
[424106231,1780595450000,-500.0,0.00016438,2]
[424106234,1780595450000,-151.0,0.00016438,2]
[424106233,1780595450000,-151.0,0.00016438,2]
[424106225,1780595450000,-796.32,0.00016438,2]
[424106235,1780595450000,-151.0,0.00016438,2]
[424106227,1780595450000,-945.28,0.00016438,2]
[424106232,1780595450000,-848.2,0.00016438,2]
[424106226,1780595450000,-500.0,0.00016438,2]
[424106229,1780595450000,-920.6,0.00016438,2]
[424106230,1780595450000,-1186.94,0.00016438,2]
[424106238,1780595450000,-151.0,0.00016438,2]
[424106263,1780595450000,-1186.94,0.00016712,2]
[424106240,1780595450000,-161.499592,0.00016438,2]
[424106239,1780595450000,-151.0,0.00016438,2]
[424106243,1780595450000,-235.897851,0.0001666,2]
[424106242,1780595450000,-864.0,0.00016537,2]
[424106244,1780595450000,-209.948813,0.0001666,2]
[424106250,1780595450000,-790.04,0.00016712,2]
[424106249,1780595450000,-500.0,0.00016712,2]
[424106247,1780595450000,-701.09,0.00016712,2]
[424106248,1780595450000,-500.0,0.00016712,2]
[424106245,1780595450000,-151.0,0.000167,2]
[424106246,1780595450000,-151.0,0.000167,2]
[424106252,1780595450000,-4361.75,0.00016712,2]
[424106220,1780595450000,-500.0,0.00016438,2]
[424106241,1780595450000,-2182.994405,0.00016514,2]
[424106219,1780595450000,-734.42,0.00016438,2]
[424106197,1780595450000,-290.09240622,0.00016166,2]
[424106222,1780595450000,-500.0,0.00016438,2]
[424106198,1780595450000,-206.11658559,0.00016166,2]
[424106195,1780595450000,-495.37425278,0.00016166,2]
[424106193,1780595450000,-193.48342296,0.00016166,2]
[424106194,1780595450000,-172.17830392,0.00016166,2]
[424106196,1780595450000,-643.16156597,0.00016166,2]
[424106192,1780595450000,-175.43411161,0.00016166,2]
[424106200,1780595450000,-199.1151892,0.00016166,2]
[424106210,1780595450000,-158.826,0.00016338,2]
[424106199,1780595450000,-150.65122539,0.00016166,2]
[424106211,1780595450000,-409.35954204,0.00016438,2]
[424106203,1780595450000,-183.16891586,0.00016166,2]
[424106202,1780595450000,-158.63897907,0.00016166,2]
[424106201,1780595450000,-203.65157357,0.00016166,2]
[424106204,1780595450000,-161.45655691,0.00016166,2]
[424106205,1780595450000,-157.20152179,0.00016166,2]
[424106208,1780595450000,-171.65668818,0.00016166,2]
[424106209,1780595450000,-151.0,0.000163,2]
[424106206,1780595450000,-181.15434714,0.00016166,2]
[424106207,1780595450000,-167.38217933,0.00016166,2]
[424106213,1780595450000,-500.0,0.00016438,2]
[424106212,1780595450000,-701.09,0.00016438,2]
[424106223,1780595450000,-534.77,0.00016438,2]
[424106214,1780595450000,-500.0,0.00016438,2]
[424106215,1780595450000,-790.04,0.00016438,2]
[424106216,1780595450000,-902.47,0.00016438,2]
[424106217,1780595450000,-162.93876243,0.00016438,2]
[424106224,1780595450000,-372.39,0.00016438,2]
[424106262,1780595450000,-920.6,0.00016712,2]
[424106218,1780595450000,-4361.75,0.00016438,2]
[424106221,1780595450000,-1209.16,0.00016438,2]
[424106255,1780595450000,-1209.16,0.00016712,2]
[424106289,1780595450000,-345.19485239,0.00016952,2]
[424106254,1780595450000,-500.0,0.00016712,2]
[424106291,1780595450000,-343.98119632,0.00016952,2]
[424106296,1780595450000,-990.74850557,0.00016952,2]
[424106295,1780595450000,-344.35660783,0.00016952,2]
[424106294,1780595450000,-386.96684593,0.00016952,2]
[424106301,1780595450000,-398.2303784,0.00016952,2]
[424106292,1780595450000,-210.76761759,0.00016952,2]
[424106293,1780595450000,-350.86822321,0.00016952,2]
[424106300,1780595450000,-301.30245078,0.00016952,2]
[424106298,1780595450000,-580.18481243,0.00016952,2]
[424106297,1780595450000,-1286.32313193,0.00016952,2]
[424106299,1780595450000,-412.23317119,0.00016952,2]
[424106303,1780595450000,-180.22369928,0.00016952,2]
[424106312,1780595450000,-334.76435865,0.00016952,2]
[424106313,1780595450000,-343.31337635,0.00016952,2]
[424106314,1780595450000,-701.09,0.00016986,2]
[424106302,1780595450000,-407.30314714,0.00016952,2]
[424106315,1780595450000,-500.0,0.00016986,2]
[424106304,1780595450000,-317.27795814,0.00016952,2]
[424106307,1780595450000,-366.33783172,0.00016952,2]
[424106306,1780595450000,-213.66428552,0.00016952,2]
[424106305,1780595450000,-217.33212045,0.00016952,2]
[424106308,1780595450000,-232.57196844,0.00016952,2]
[424106309,1780595450000,-322.91311382,0.00016952,2]
[424106311,1780595450000,-362.30869428,0.00016952,2]
[424106310,1780595450000,-314.40304357,0.00016952,2]
[424106316,1780595450000,-560.99253697,0.00016986,2]
[424106319,1780595450000,-4361.75,0.00016986,2]
[424106318,1780595450000,-902.47,0.00016986,2]
[424106317,1780595450000,-790.04,0.00016986,2]
[424106290,1780595450000,-364.99515882,0.00016952,2]
[424106283,1780595450000,-289.294013,0.00016915,2]
[424106257,1780595450000,-534.77,0.00016712,2]
[424106281,1780595450000,-205.128565,0.00016915,2]
[424106285,1780595450000,-320.05907421,0.00016952,2]
[424106253,1780595450000,-734.42,0.00016712,2]
[424106259,1780595450000,-500.0,0.00016712,2]
[424106256,1780595450000,-500.0,0.00016712,2]
[424106258,1780595450000,-796.32,0.00016712,2]
[424106260,1780595450000,-945.28,0.00016712,2]
[424106261,1780595450000,-500.0,0.00016712,2]
[424106264,1780595450000,-500.0,0.00016712,2]
[424106266,1780595450000,-181.09228522,0.00016855,2]
[424106270,1780595450000,-307.98186389,0.00016879,2]
[424106274,1780595450000,-380.63135981,0.0001688,2]
[424106272,1780595450000,-206.30782551,0.00016879,2]
[424106268,1780595450000,-309.85530554,0.00016857,2]
[424106271,1780595450000,-319.40418145,0.00016879,2]
[424106251,1780595450000,-902.47,0.00016712,2]
[424106267,1780595450000,-377.62553487,0.00016857,2]
[424106275,1780595450000,-321.25209906,0.0001688,2]
[424106279,1780595450000,-256.091482,0.00016915,2]
[424106280,1780595450000,-361.939342,0.00016915,2]
[424106284,1780595450000,-162.504606,0.00016915,2]
[424106278,1780595450000,-292.86886,0.00016915,2]
[424106276,1780595450000,-408.95966931,0.0001688,2]
[424106282,1780595450000,-251.56001,0.00016915,2]
[424106287,1780595450000,-353.71064493,0.00016952,2]
[424106286,1780595450000,-210.51325217,0.00016952,2]
[424106277,1780595450000,-311.14544154,0.0001688,2]
[424106273,1780595450000,-318.06783336,0.0001688,2]
[424106288,1780595450000,-355.96273291,0.00016952,2]
[424106269,1780595450000,-317.64840309,0.00016879,2]
[424106265,1780595450000,-273.846277,0.00016793,2]
[424106357,1780595451000,-1186.94,0.0001726,2]
[424106363,1780595451000,-151.0,0.00017315,2]
[424106358,1780595451000,-364.84119337,0.0001726,2]
[424106360,1780595451000,-151.0,0.00017315,2]
[424106346,1780595451000,-4361.75,0.0001726,2]
[424106359,1780595451000,-848.2,0.0001726,2]
[424106353,1780595451000,-500.0,0.0001726,2]
[424106344,1780595451000,-446.60541141,0.0001726,2]
[424106350,1780595451000,-500.0,0.0001726,2]
[424106354,1780595451000,-945.28,0.0001726,2]
[424106355,1780595451000,-500.0,0.0001726,2]
[424106361,1780595451000,-151.0,0.00017315,2]
[424106364,1780595451000,-151.0,0.00017315,2]
[424106365,1780595451000,-151.0,0.00017315,2]
[424106362,1780595451000,-151.0,0.00017315,2]
[424106356,1780595451000,-920.6,0.0001726,2]
[424106368,1780595451000,-293.08175057,0.00017315,2]
[424106367,1780595451000,-151.0,0.00017315,2]
[424106373,1780595451000,-464.78295831,0.00017379,2]
[424106371,1780595451000,-566.43830231,0.00017379,2]
[424106372,1780595451000,-196.99002093,0.00017379,2]
[424106377,1780595451000,-200.75181919,0.00017401,2]
[424106376,1780595451000,-461.97279584,0.00017401,2]
[424106379,1780595451000,-161.46371667,0.00017401,2]
[424106347,1780595451000,-734.42,0.0001726,2]
[424106366,1780595451000,-151.0,0.00017315,2]
[424106345,1780595451000,-902.47,0.0001726,2]
[424106339,1780595451000,-500.0,0.0001726,2]
[424106342,1780595451000,-848.2,0.00016712,2]
[424106320,1780595451000,-734.42,0.00016986,2]
[424106321,1780595451000,-500.0,0.00016986,2]
[424106322,1780595451000,-1209.16,0.00016986,2]
[424106324,1780595451000,-534.77,0.00016986,2]
[424106325,1780595451000,-796.32,0.00016986,2]
[424106326,1780595451000,-500.0,0.00016986,2]
[424106323,1780595451000,-500.0,0.00016986,2]
[424106328,1780595451000,-500.0,0.00016986,2]
[424106327,1780595451000,-945.28,0.00016986,2]
[424106330,1780595451000,-1186.94,0.00016986,2]
[424106329,1780595451000,-920.6,0.00016986,2]
[424106338,1780595451000,-701.09,0.0001726,2]
[424106348,1780595451000,-500.0,0.0001726,2]
[424106331,1780595451000,-500.0,0.00016986,2]
[424106340,1780595451000,-343.43458859,0.0001726,2]
[424106333,1780595451000,-200.0,0.00017,2]
[424106332,1780595451000,-99786.18391268,0.00017,2]
[424106335,1780595451000,-444.0,0.00017136,2]
[424106336,1780595451000,-185.0,0.00017136,2]
[424106337,1780595451000,-302.969859,0.00017183,2]
[424106334,1780595451000,-1415.0,0.00017136,2]
[424106341,1780595451000,-5000.0,0.00010298,2]
[424106343,1780595451000,-848.2,0.00016986,2]
[424106349,1780595451000,-1209.16,0.0001726,2]
[424106351,1780595451000,-534.77,0.0001726,2]
[424106352,1780595451000,-796.32,0.0001726,2]
[424106381,1780595451000,-477.10175003,0.00017403,2]
[424106374,1780595451000,-200.24398181,0.00017389,2]
[424106370,1780595451000,-362.18457044,0.00017377,2]
[424106378,1780595451000,-479.10627217,0.00017401,2]
[424106414,1780595451000,-610.95472071,0.00017476,2]
[424106419,1780595451000,-427.32857104,0.00017476,2]
[424106412,1780595451000,-411.94299783,0.00017476,2]
[424106413,1780595451000,-185.40256977,0.00017476,2]
[424106416,1780595451000,-360.44739856,0.00017476,2]
[424106415,1780595451000,-421.53523518,0.00017476,2]
[424106421,1780595451000,-465.14393687,0.00017476,2]
[424106420,1780595451000,-549.50674758,0.00017476,2]
[424106418,1780595451000,-434.6642409,0.00017476,2]
[424106417,1780595451000,-475.91693721,0.00017476,2]
[424106425,1780595451000,-471.60456536,0.00017476,2]
[424106424,1780595451000,-187.74509805,0.00017476,2]
[424106409,1780595451000,-161.23641808,0.00017476,2]
[424106422,1780595451000,-484.36967072,0.00017476,2]
[424106423,1780595451000,-236.15784833,0.00017476,2]
[424106430,1780595451000,-369.7331801,0.00017534,2]
[424106429,1780595451000,-701.09,0.00017534,2]
[424106426,1780595451000,-543.46304143,0.00017476,2]
[424106427,1780595451000,-502.14653798,0.00017476,2]
[424106431,1780595451000,-790.04,0.00017534,2]
[424106380,1780595451000,-412.61565103,0.00017401,2]
[424106433,1780595451000,-4361.75,0.00017534,2]
[424106434,1780595451000,-734.42,0.00017534,2]
[424106436,1780595451000,-1209.16,0.00017534,2]
[424106435,1780595451000,-500.0,0.00017534,2]
[424106437,1780595451000,-539.01745139,0.00017534,2]
[424106428,1780595451000,-514.97006453,0.00017476,2]
[424106411,1780595451000,-451.95367618,0.00017476,2]
[424106432,1780595451000,-902.47,0.00017534,2]
[424106405,1780595451000,-1663.56856323,0.00017476,2]
[424106410,1780595451000,-245.20009956,0.00017476,2]
[424106375,1780595451000,-476.47260464,0.00017401,2]
[424106383,1780595451000,-481.8781486,0.00017403,2]
[424106392,1780595451000,-206.06452227,0.00017476,2]
[424106387,1780595451000,-245.426147,0.00017444,2]
[424106388,1780595451000,-200.364252,0.00017444,2]
[424106386,1780595451000,-466.71816231,0.00017403,2]
[424106394,1780595451000,-421.02650433,0.00017476,2]
[424106395,1780595451000,-533.94409936,0.00017476,2]
[424106384,1780595451000,-613.43950397,0.00017403,2]
[424106385,1780595451000,-170.8634254,0.00017403,2]
[424106382,1780595451000,-570.94703972,0.00017403,2]
[424106389,1780595451000,-308.061764,0.00017444,2]
[424106393,1780595451000,-152.66204369,0.00017476,2]
[424106390,1780595451000,-169.433971,0.00017444,2]
[424106391,1780595451000,-395.178075,0.00017444,2]
[424106407,1780595451000,-870.27721865,0.00017476,2]
[424106408,1780595451000,-618.34975678,0.00017476,2]
[424106403,1780595451000,-1486.12275835,0.00017476,2]
[424106397,1780595451000,-517.79227859,0.00017476,2]
[424106404,1780595451000,-265.91613467,0.00017476,2]
[424106406,1780595451000,-194.26649148,0.00017476,2]
[424106401,1780595451000,-580.45026889,0.00017476,2]
[424106398,1780595451000,-547.49273823,0.00017476,2]
[424106400,1780595451000,-526.30233482,0.00017476,2]
[424106399,1780595451000,-515.97179448,0.00017476,2]
[424106396,1780595451000,-530.5659674,0.00017476,2]
[424106402,1780595451000,-516.53491175,0.00017476,2]
[424106444,1780595452000,-1186.94,0.00017534,2]
[424106445,1780595452000,-848.2,0.00017534,2]
[424106447,1780595452000,-543.27685566,0.00017725,2]
[424106446,1780595452000,-2168.62508514,0.000176,2]
[424106438,1780595452000,-534.77,0.00017534,2]
[424106443,1780595452000,-920.6,0.00017534,2]
[424106442,1780595452000,-500.0,0.00017534,2]
[424106439,1780595452000,-796.32,0.00017534,2]
[424106441,1780595452000,-945.28,0.00017534,2]
[424106450,1780595452000,-393.98004187,0.00017727,2]
[424106440,1780595452000,-500.0,0.00017534,2]
[424106451,1780595452000,-180.25916356,0.00017727,2]
[424106448,1780595452000,-640.99285656,0.00017727,2]
[424106454,1780595452000,-400.48796361,0.00017738,2]
[424106456,1780595452000,-635.29680618,0.0001775,2]
[424106458,1780595452000,-401.50363839,0.0001775,2]
[424106460,1780595452000,-189.63345573,0.0001775,2]
[424106459,1780595452000,-322.92743334,0.0001775,2]
[424106452,1780595452000,-375.49019611,0.00017727,2]
[424106457,1780595452000,-615.96372778,0.0001775,2]
[424106455,1780595452000,-192.84819394,0.00017738,2]
[424106453,1780595452000,-472.31569667,0.00017727,2]
[424106449,1780595452000,-755.25106975,0.00017727,2]
[424106466,1780595753000,156.0,0.00023239,120]
[424106469,1780595860000,189.8,0.00023239,120]
[424106474,1780596028000,5000.0,9e-05,3]
[424106475,1780596037000,5000.0,9e-05,3]
[424106479,1780596225000,-500.00170171,9.039e-05,2]
[424106480,1780596227000,-450.43058049,9.039e-05,2]
[424106481,1780596228000,800.93707747,0.00023235,120]
[424106482,1780596229000,-177.19567882,9.039e-05,2]
[424106483,1780596230000,-931.48,9.039e-05,2]
[424106484,1780596231000,800.93707747,0.00023235,120]
[424106485,1780596232000,-297.6729855,9.039e-05,2]
[424106486,1780596234000,-336.57899379,9.039e-05,2]
[424106487,1780596236000,-500.0,9.039e-05,2]
[424106488,1780596238000,-372.37374069,9.039e-05,2]
[424106489,1780596242000,-293.09379332,8.949e-05,2]
[424106490,1780596245000,-310.36452317,8.949e-05,2]
[424106491,1780596247000,-258.83556483,8.949e-05,2]
[424106492,1780596248000,-313.13097928,8.949e-05,2]
[424106493,1780596251000,-231.52176973,8.86e-05,2]
[424106494,1780596253000,-156.9175465,8.86e-05,2]
[424106497,1780596264000,2000.0,0.00023235,120]
[424106498,1780596270000,-426.15119389,8.86e-05,2]
[424106499,1780596272000,-397.85125961,8.86e-05,2]
[424106500,1780596273000,-580.29848,8.86e-05,2]
[424106501,1780596283000,-516.76796848,8.86e-05,2]
[424106504,1780596403000,-500.00364558,8.771e-05,2]
[424106600,1780596632000,-588.6825735,9.994e-05,2]
[424106546,1780596632000,65.2963443,5e-05,2]
[424106550,1780596632000,96.2236557,5e-05,2]
[424106558,1780596632000,-2491.00393743,8.596e-05,2]
[424106566,1780596632000,-300.0,9.241e-05,2]
[424106560,1780596632000,-2508.99606257,8.596e-05,2]
[424106562,1780596632000,-1200.0,8.682e-05,2]
[424106573,1780596632000,-6485.0005758,9.242e-05,2]
[424106564,1780596632000,-5000.0,8.683e-05,2]
[424106570,1780596632000,-300.0,9.241e-05,2]
[424106575,1780596632000,-262.45,9.468e-05,2]
[424106568,1780596632000,-300.0,9.241e-05,2]
[424106578,1780596632000,-300.0,9.5e-05,2]
[424106576,1780596632000,-300.0,9.5e-05,2]
[424106594,1780596632000,-267.7103083,9.796e-05,2]
[424106598,1780596632000,-180.34369965,9.896e-05,7]
[424106582,1780596632000,-3637.12535074,9.675e-05,2]
[424106584,1780596632000,-16.76458165,9.675e-05,2]
[424106596,1780596632000,-333.0807525,9.896e-05,7]
[424106586,1780596632000,-165.1647,9.697e-05,2]
[424106588,1780596632000,-157.47,9.761e-05,2]
[424106592,1780596632000,-3630.18266605,9.771e-05,2]
[424106580,1780596632000,-1680.0,9.55e-05,2]
[424106590,1780596632000,-91.76402545,9.771e-05,2]
[424106822,1780596641000,-2351.0,0.00010505,2]
[424106818,1780596641000,-180.34369965,0.00010391,7]
[424106806,1780596641000,-420.0,0.00010165,2]
[424106808,1780596641000,-420.0,0.00010165,2]
[424106814,1780596641000,-152.0,0.00010196,7]
[424106812,1780596641000,-152.0,0.00010196,7]
[424106804,1780596641000,-180.34369965,0.00010094,7]
[424106810,1780596641000,-420.0,0.00010165,2]
[424106798,1780596641000,-3002.68699154,9.994e-05,2]
[424106800,1780596641000,-6122.5523731,9.995e-05,2]
[424106816,1780596641000,-333.0807525,0.00010391,7]
[424106827,1780596641000,-333.0807525,0.00010688,7]
[424106802,1780596641000,-333.0807525,0.00010094,7]
[424106829,1780596641000,-180.34369965,0.00010688,7]
[424106841,1780596641000,-180.34369966,0.00011084,7]
[424106843,1780596641000,-587.0,0.00011182,2]
[424106831,1780596641000,-2871.2184582,0.00010694,2]
[424106821,1780596641000,-625.871424,0.00010461,2]
[424106833,1780596641000,-625.871424,0.00010901,2]
[424106839,1780596641000,-333.0807525,0.00011084,7]
[424106837,1780596641000,-348.50063661,0.00010964,2]
[424106835,1780596641000,-2255.3696701,0.00010959,2]
[424106844,1780596641000,-300.0,0.00011182,2]
[424106850,1780596641000,-625.871424,0.00011342,2]
[424106848,1780596641000,-360.06760715,0.00011289,2]
[424106846,1780596641000,-587.0,0.00011182,2]
[424106824,1780596641000,-409.38962428,0.00010671,2]
[424106898,1780596642000,-205.59277367,0.00013425,2]
[424106900,1780596642000,-500.0,0.00013425,2]
[424106902,1780596642000,-349.70006729,0.00013425,2]
[424106896,1780596642000,-292.52238375,0.00013425,2]
[424106910,1780596642000,-151.5,0.00013425,2]
[424106916,1780596642000,-151.5,0.00013425,2]
[424106908,1780596642000,-151.5,0.00013425,2]
[424106918,1780596642000,-500.0,0.00013425,2]
[424106937,1780596642000,-500.0,0.00013425,2]
[424106922,1780596642000,-500.0,0.00013425,2]
[424106924,1780596642000,-500.0,0.00013425,2]
[424106926,1780596642000,-500.0,0.00013425,2]
[424106935,1780596642000,-500.0,0.00013425,2]
[424106894,1780596642000,-1154.13426616,0.000134,2]
[424106939,1780596642000,-277.71993064,0.00013425,2]
[424106941,1780596642000,-2704.58095364,0.0001353,2]
[424106920,1780596642000,-151.5,0.00013425,2]
[424106928,1780596642000,-500.0,0.00013425,2]
[424106930,1780596642000,-500.0,0.00013425,2]
[424106914,1780596642000,-215.04220334,0.00013425,2]
[424106906,1780596642000,-151.5,0.00013425,2]
[424106881,1780596642000,-1154.13426616,0.00013,2]
[424106892,1780596642000,-2704.58095366,0.00013325,2]